[Event "Early-Titled-Tuesday-Blitz-July-09-2024"]
[Site "Chess.com"]
[Date "2024.07.09"]
[Round "7"]
[White "NowInChess"]
[Black "pinelone"]
[Result "1-0"]
[WhiteElo "2210"]
[BlackElo "2366"]
[TimeControl "180+1"]
[EndTime "9:20:28 PDT"]
[Termination "NowInChess won by resignation"]

1. e4 {[%clk 0:03:00.9]} 1... c6 {[%clk 0:02:59.4]} 2. d4 {[%clk 0:03:00.3]}
2... d5 {[%clk 0:02:59.5]} 3. exd5 {[%clk 0:03:01.2]} 3... cxd5 {[%clk
0:02:59.4]} 4. c4 {[%clk 0:03:02.1]} 4... Nf6 {[%clk 0:02:58.9]} 5. Nc3 {[%clk
0:03:01.8]} 5... Nc6 {[%clk 0:02:59]} 6. Bf4 {[%clk 0:03:00.9]} 6... Be6 {[%clk
0:02:22.3]} 7. c5 {[%clk 0:02:59.8]} 7... Ne4 {[%clk 0:02:10.9]} 8. Bd3 {[%clk
0:02:46.8]} 8... Nxd4 {[%clk 0:01:14.4]} 9. Nxe4 {[%clk 0:02:13.1]} 9... dxe4
{[%clk 0:01:14.1]} 10. Bxe4 {[%clk 0:02:13.6]} 10... Qd7 {[%clk 0:01:03.2]} 11.
Ne2 {[%clk 0:01:48.4]} 11... Nc6 {[%clk 0:00:59.2]} 12. O-O {[%clk 0:01:42.7]}
12... g6 {[%clk 0:00:55.6]} 13. Qc2 {[%clk 0:01:25]} 13... Bg7 {[%clk
0:00:54.9]} 14. Rfd1 {[%clk 0:01:22.6]} 14... Qc8 {[%clk 0:00:55.1]} 15. a3
{[%clk 0:01:20.8]} 15... O-O {[%clk 0:00:54.5]} 16. Rac1 {[%clk 0:01:07.3]}
16... Rd8 {[%clk 0:00:52.7]} 17. b4 {[%clk 0:01:05]} 17... a6 {[%clk 0:00:48.5]}
18. Rxd8+ {[%clk 0:00:52.4]} 18... Qxd8 {[%clk 0:00:47.4]} 19. Rd1 {[%clk
0:00:49]} 19... Qe8 {[%clk 0:00:46.4]} 20. Bd2 {[%clk 0:00:26.6]} 20... Rd8
{[%clk 0:00:35.4]} 21. Bc3 {[%clk 0:00:26.7]} 21... Rd7 {[%clk 0:00:27.4]} 22.
Bxg7 {[%clk 0:00:22.7]} 22... Kxg7 {[%clk 0:00:27.5]} 23. h3 {[%clk 0:00:16.5]}
23... f6 {[%clk 0:00:22]} 24. Rxd7 {[%clk 0:00:16.1]} 24... Qxd7 {[%clk
0:00:20.6]} 25. Kh2 {[%clk 0:00:13.5]} 25... Bf7 {[%clk 0:00:18.9]} 26. Bxc6
{[%clk 0:00:11.6]} 26... Qxc6 {[%clk 0:00:18.7]} 27. Qd3 {[%clk 0:00:09.5]}
27... e5 {[%clk 0:00:17.5]} 28. Nc3 {[%clk 0:00:09]} 28... f5 {[%clk 0:00:15.6]}
29. Qd6 {[%clk 0:00:08.9]} 29... Qxd6 {[%clk 0:00:15.2]} 30. cxd6 {[%clk
0:00:09.8]} 30... Kf6 {[%clk 0:00:15.5]} 31. Na4 {[%clk 0:00:09.4]} 31... Ke6
{[%clk 0:00:15.3]} 32. Nc5+ {[%clk 0:00:09.4]} 32... Kxd6 {[%clk 0:00:15.4]} 33.
Nxb7+ {[%clk 0:00:10.1]} 33... Kc6 {[%clk 0:00:14.9]} 34. Nd8+ {[%clk
0:00:09.8]} 34... Kd5 {[%clk 0:00:15.4]} 35. Nxf7 {[%clk 0:00:10.6]} 35... e4
{[%clk 0:00:14.9]} 36. Kg1 {[%clk 0:00:09]} 36... f4 {[%clk 0:00:14.9]} 37. Kf1
{[%clk 0:00:08.6]} 37... Kc4 {[%clk 0:00:15.4]} 38. Nd6+ {[%clk 0:00:07.4]}
38... Kb3 {[%clk 0:00:15.5]} 39. Nxe4 {[%clk 0:00:07.5]} 39... Kxa3 {[%clk
0:00:16.2]} 40. Nc5 {[%clk 0:00:07.9]} 40... Kxb4 {[%clk 0:00:15.6]} 41. Nxa6+
{[%clk 0:00:08.3]} 41... Kc3 {[%clk 0:00:16.1]} 42. Ke2 {[%clk 0:00:07.9]} 42...
Kd4 {[%clk 0:00:16.8]} 43. Nc7 {[%clk 0:00:08]} 43... Ke5 {[%clk 0:00:17.4]} 44.
Nb5 {[%clk 0:00:07.3]} 44... Ke4 {[%clk 0:00:17.5]} 45. Nc3+ {[%clk 0:00:07.8]}
45... Kf5 {[%clk 0:00:17.7]} 46. Kf3 {[%clk 0:00:08.3]} 46... g5 {[%clk
0:00:18.4]} 47. Ne2 {[%clk 0:00:08.4]} 47... h5 {[%clk 0:00:19]} 48. Nd4+ {[%clk
0:00:07.2]} 48... Ke5 {[%clk 0:00:18.8]} 49. Ne2 {[%clk 0:00:07.1]} 49... Kf5
{[%clk 0:00:19.7]} 50. g4+ {[%clk 0:00:06.8]} 50... fxg3 {[%clk 0:00:19.3]} 51.
fxg3 {[%clk 0:00:06.6]} 51... g4+ {[%clk 0:00:18.9]} 52. hxg4+ {[%clk
0:00:06.1]} 52... hxg4+ {[%clk 0:00:19.5]} 53. Ke3 {[%clk 0:00:06.5]} 53... Ke5
{[%clk 0:00:20.2]} 54. Nc3 {[%clk 0:00:06.4]} 54... Kf5 {[%clk 0:00:20.5]} 55.
Kd4 {[%clk 0:00:06.8]} 55... Kg5 {[%clk 0:00:20.7]} 56. Ke5 {[%clk 0:00:07.2]}
56... Kh5 {[%clk 0:00:21.2]} 57. Kf5 {[%clk 0:00:07.5]} 57... Kh6 {[%clk
0:00:21.9]} 58. Kxg4 {[%clk 0:00:08.1]} 1-0

[Event "Early-Titled-Tuesday-Blitz-July-09-2024"]
[Site "Chess.com"]
[Date "2024.07.09"]
[Round "7"]
[White "ManMish2"]
[Black "ThetNaung291"]
[Result "1-0"]
[WhiteElo "2609"]
[BlackElo "2441"]
[TimeControl "180+1"]
[EndTime "9:20:29 PDT"]
[Termination "ManMish2 won by resignation"]

1. d4 {[%clk 0:03:00.9]} 1... Nf6 {[%clk 0:02:57.2]} 2. c4 {[%clk 0:02:59.8]}
2... c5 {[%clk 0:02:53.4]} 3. d5 {[%clk 0:02:58.8]} 3... e5 {[%clk 0:02:53]} 4.
Nc3 {[%clk 0:02:54.9]} 4... d6 {[%clk 0:02:52.2]} 5. e4 {[%clk 0:02:54.1]} 5...
g6 {[%clk 0:02:49.8]} 6. Bd3 {[%clk 0:02:51.5]} 6... Bg7 {[%clk 0:02:49.5]} 7.
Nge2 {[%clk 0:02:51.6]} 7... Na6 {[%clk 0:02:47.6]} 8. O-O {[%clk 0:02:49.4]}
8... O-O {[%clk 0:02:46.8]} 9. h3 {[%clk 0:02:44.4]} 9... Nc7 {[%clk 0:02:46.3]}
10. Be3 {[%clk 0:02:41.7]} 10... a6 {[%clk 0:02:45.4]} 11. a3 {[%clk 0:02:32.7]}
11... b5 {[%clk 0:02:34.5]} 12. b4 {[%clk 0:02:31]} 12... cxb4 {[%clk
0:02:23.8]} 13. axb4 {[%clk 0:02:29.5]} 13... bxc4 {[%clk 0:02:23.6]} 14. Bxc4
{[%clk 0:02:30.4]} 14... Bd7 {[%clk 0:02:11.1]} 15. Qd3 {[%clk 0:02:25.3]} 15...
Qb8 {[%clk 0:02:08.5]} 16. Rfb1 {[%clk 0:02:22.5]} 16... Qb7 {[%clk 0:02:06.9]}
17. Nc1 {[%clk 0:02:14.1]} 17... Rfb8 {[%clk 0:02:05.4]} 18. Nb3 {[%clk
0:02:09.8]} 18... Nb5 {[%clk 0:01:55.7]} 19. Na5 {[%clk 0:02:07.2]} 19... Qc8
{[%clk 0:01:55.3]} 20. Nxb5 {[%clk 0:01:54.8]} 20... axb5 {[%clk 0:01:48.3]} 21.
Bb3 {[%clk 0:01:54.7]} 21... h5 {[%clk 0:01:43.9]} 22. Rc1 {[%clk 0:01:53.2]}
22... Qe8 {[%clk 0:01:40.4]} 23. f3 {[%clk 0:01:46.5]} 23... Kh7 {[%clk
0:01:39.7]} 24. Qd2 {[%clk 0:01:35]} 24... Rc8 {[%clk 0:01:33.5]} 25. Rxc8
{[%clk 0:01:14]} 25... Rxc8 {[%clk 0:01:32.9]} 26. Rc1 {[%clk 0:01:14.3]} 26...
h4 {[%clk 0:01:25.2]} 27. Bg5 {[%clk 0:01:12.1]} 27... Nh5 {[%clk 0:01:24.5]}
28. Rxc8 {[%clk 0:00:53.2]} 28... Qxc8 {[%clk 0:01:23.9]} 29. Qc1 {[%clk
0:00:53.6]} 29... Bxh3 {[%clk 0:01:07.1]} 30. Qxc8 {[%clk 0:00:33.7]} 30... Bxc8
{[%clk 0:01:06.5]} 31. Nc6 {[%clk 0:00:34.3]} 31... Nf4 {[%clk 0:01:00.4]} 32.
Bxh4 {[%clk 0:00:31.1]} 32... f6 {[%clk 0:00:59]} 33. Kf1 {[%clk 0:00:23.2]}
33... Bd7 {[%clk 0:00:47.7]} 34. Nb8 {[%clk 0:00:22.1]} 34... Be8 {[%clk
0:00:46.5]} 35. Bf2 {[%clk 0:00:21]} 35... Nd3 {[%clk 0:00:44.9]} 36. Be1 {[%clk
0:00:21.4]} 36... Nxe1 {[%clk 0:00:41]} 37. Kxe1 {[%clk 0:00:22.3]} 37... Bh6
{[%clk 0:00:40.3]} 38. Ke2 {[%clk 0:00:18.3]} 38... Kg7 {[%clk 0:00:40.1]} 39.
Bc2 {[%clk 0:00:18.3]} 39... Kf8 {[%clk 0:00:39.3]} 40. Bd3 {[%clk 0:00:18.7]}
40... Ke7 {[%clk 0:00:38.5]} 41. Nc6+ {[%clk 0:00:16.3]} 41... Bxc6 {[%clk
0:00:33.6]} 42. dxc6 {[%clk 0:00:17.2]} 42... Kd8 {[%clk 0:00:33.6]} 43. Bxb5
{[%clk 0:00:17.4]} 43... Kc7 {[%clk 0:00:33.8]} 44. Ba4 {[%clk 0:00:17.7]} 44...
Kb6 {[%clk 0:00:33.4]} 45. b5 {[%clk 0:00:17.9]} 45... f5 {[%clk 0:00:32.9]} 46.
exf5 {[%clk 0:00:16.1]} 46... gxf5 {[%clk 0:00:32.5]} 47. Bc2 {[%clk 0:00:16.7]}
47... f4 {[%clk 0:00:29.3]} 48. Kd3 {[%clk 0:00:15.4]} 48... d5 {[%clk
0:00:27.5]} 49. Bb3 {[%clk 0:00:14.9]} 49... e4+ {[%clk 0:00:25.8]} 50. fxe4
{[%clk 0:00:14.3]} 50... f3 {[%clk 0:00:25.5]} 51. gxf3 {[%clk 0:00:13.1]} 51...
dxe4+ {[%clk 0:00:25.6]} 52. Kxe4 {[%clk 0:00:12.8]} 52... Bf8 {[%clk
0:00:24.6]} 53. Bc4 {[%clk 0:00:13]} 53... Bd6 {[%clk 0:00:24.5]} 54. Be2 {[%clk
0:00:13.9]} 1-0

[Event "Early-Titled-Tuesday-Blitz-July-09-2024"]
[Site "Chess.com"]
[Date "2024.07.09"]
[Round "7"]
[White "MaxLeto"]
[Black "Matols"]
[Result "0-1"]
[WhiteElo "2488"]
[BlackElo "2370"]
[TimeControl "180+1"]
[EndTime "9:20:30 PDT"]
[Termination "Matols won by checkmate"]

1. g4 {[%clk 0:02:58.6]} 1... d5 {[%clk 0:03:00.1]} 2. Bg2 {[%clk 0:02:58.7]}
2... Bxg4 {[%clk 0:02:57]} 3. c4 {[%clk 0:02:58.3]} 3... e6 {[%clk 0:02:55.7]}
4. Qb3 {[%clk 0:02:57.1]} 4... Ne7 {[%clk 0:02:55.1]} 5. Qxb7 {[%clk 0:02:55.1]}
5... Nbc6 {[%clk 0:02:55.4]} 6. Nc3 {[%clk 0:02:18.3]} 6... Rb8 {[%clk
0:02:53.6]} 7. Qa6 {[%clk 0:02:18.1]} 7... Qd7 {[%clk 0:02:28.8]} 8. Qa4 {[%clk
0:01:52.4]} 8... Nd4 {[%clk 0:02:14]} 9. Qxd7+ {[%clk 0:01:12.5]} 9... Kxd7
{[%clk 0:02:14.9]} 10. Kd1 {[%clk 0:01:10.5]} 10... dxc4 {[%clk 0:02:15.1]} 11.
h3 {[%clk 0:01:02.6]} 11... Bh5 {[%clk 0:02:14.5]} 12. b3 {[%clk 0:00:51.7]}
12... cxb3 {[%clk 0:01:36.3]} 13. axb3 {[%clk 0:00:52.6]} 13... Rxb3 {[%clk
0:01:34.9]} 14. Rxa7 {[%clk 0:00:51.4]} 14... Nef5 {[%clk 0:01:31.3]} 15. h4
{[%clk 0:00:26.4]} 15... Bc5 {[%clk 0:01:26.9]} 16. Ra4 {[%clk 0:00:22.6]} 16...
Rhb8 {[%clk 0:01:21.4]} 17. Rh3 {[%clk 0:00:18.4]} 17... Nd6 {[%clk 0:00:54.2]}
18. Nf3 {[%clk 0:00:11.7]} 18... Nxf3 {[%clk 0:00:40.4]} 19. Bxf3 {[%clk
0:00:12.6]} 19... Bxf3 {[%clk 0:00:34.6]} 20. Rxf3 {[%clk 0:00:13.5]} 20... f6
{[%clk 0:00:31.8]} 21. h5 {[%clk 0:00:13.3]} 21... R8b4 {[%clk 0:00:28.3]} 22.
Rxb4 {[%clk 0:00:12.2]} 22... Rxb4 {[%clk 0:00:29.2]} 23. Rg3 {[%clk 0:00:11.2]}
23... Ne8 {[%clk 0:00:25.7]} 24. e3 {[%clk 0:00:04.1]} 24... Rh4 {[%clk
0:00:25.2]} 25. d4 {[%clk 0:00:04.2]} 25... Bd6 {[%clk 0:00:24.9]} 26. Rf3
{[%clk 0:00:01.6]} 26... Rxh5 {[%clk 0:00:24.9]} 27. Ne4 {[%clk 0:00:02.3]}
27... Rh1+ {[%clk 0:00:24.2]} 28. Kc2 {[%clk 0:00:02]} 28... h5 {[%clk
0:00:23.2]} 29. Bd2 {[%clk 0:00:01.3]} 29... h4 {[%clk 0:00:22.1]} 30. Nxd6
{[%clk 0:00:01.5]} 30... Nxd6 {[%clk 0:00:19.9]} 31. Kd3 {[%clk 0:00:02]} 31...
h3 {[%clk 0:00:18.7]} 32. e4 {[%clk 0:00:02.6]} 32... Ke7 {[%clk 0:00:15.3]} 33.
Rg3 {[%clk 0:00:02.2]} 33... g5 {[%clk 0:00:14.8]} 34. f4 {[%clk 0:00:02.2]}
34... Nf7 {[%clk 0:00:13.5]} 35. fxg5 {[%clk 0:00:01]} 35... fxg5 {[%clk
0:00:13.6]} 36. Bxg5+ {[%clk 0:00:01.3]} 36... Nxg5 {[%clk 0:00:13.2]} 37. Rxg5
{[%clk 0:00:02.2]} 37... h2 {[%clk 0:00:12.3]} 38. Rh5 {[%clk 0:00:01.2]} 38...
Rd1+ {[%clk 0:00:12.1]} 39. Kc4 {[%clk 0:00:01.1]} 39... h1=Q {[%clk 0:00:12.3]}
40. Rxh1 {[%clk 0:00:01.4]} 40... Rxh1 {[%clk 0:00:13.1]} 41. d5 {[%clk
0:00:02.2]} 41... exd5+ {[%clk 0:00:12.7]} 42. Kxd5 {[%clk 0:00:03.1]} 42...
Rh5+ {[%clk 0:00:12]} 43. e5 {[%clk 0:00:03.6]} 43... Rg5 {[%clk 0:00:12.2]} 44.
Kc6 {[%clk 0:00:02.9]} 44... Ke6 {[%clk 0:00:12.4]} 45. Kxc7 {[%clk 0:00:03.8]}
45... Rxe5 {[%clk 0:00:12.6]} 46. Kc6 {[%clk 0:00:04.4]} 46... Rd5 {[%clk
0:00:12.5]} 47. Kc7 {[%clk 0:00:05]} 47... Rd6 {[%clk 0:00:12.6]} 48. Kb7 {[%clk
0:00:05.1]} 48... Kd7 {[%clk 0:00:12.9]} 49. Kb8 {[%clk 0:00:05.4]} 49... Rc6
{[%clk 0:00:13]} 50. Kb7 {[%clk 0:00:06]} 50... Kd6 {[%clk 0:00:12.6]} 51. Kb8
{[%clk 0:00:06.5]} 51... Rc7 {[%clk 0:00:12.9]} 52. Ka8 {[%clk 0:00:06.2]} 52...
Kc6 {[%clk 0:00:13.6]} 53. Kb8 {[%clk 0:00:06.8]} 53... Kb6 {[%clk 0:00:14.1]}
54. Ka8 {[%clk 0:00:07.1]} 54... Rc8# {[%clk 0:00:14.8]} 0-1

[Event "Early-Titled-Tuesday-Blitz-July-09-2024"]
[Site "Chess.com"]
[Date "2024.07.09"]
[Round "7"]
[White "kuzol"]
[Black "dretch"]
[Result "0-1"]
[WhiteElo "2521"]
[BlackElo "2884"]
[TimeControl "180+1"]
[EndTime "9:20:31 PDT"]
[Termination "dretch won by checkmate"]

1. d4 {[%clk 0:03:00.9]} 1... d5 {[%clk 0:02:57.7]} 2. Bf4 {[%clk 0:03:00.4]}
2... c5 {[%clk 0:02:56.3]} 3. e3 {[%clk 0:03:00.5]} 3... Nc6 {[%clk 0:02:56.5]}
4. c3 {[%clk 0:03:00.4]} 4... Bf5 {[%clk 0:02:54.3]} 5. Nd2 {[%clk 0:03:00.3]}
5... e6 {[%clk 0:02:54.3]} 6. Ngf3 {[%clk 0:02:59.2]} 6... Nf6 {[%clk
0:02:49.4]} 7. Qb3 {[%clk 0:02:58.4]} 7... Qc8 {[%clk 0:02:47.7]} 8. Ne5 {[%clk
0:02:58.3]} 8... Be7 {[%clk 0:02:43.2]} 9. h3 {[%clk 0:02:53.8]} 9... Nxe5
{[%clk 0:02:29.3]} 10. Bxe5 {[%clk 0:02:51.3]} 10... O-O {[%clk 0:02:27]} 11.
Be2 {[%clk 0:02:35.5]} 11... c4 {[%clk 0:02:19.6]} 12. Qd1 {[%clk 0:02:32.5]}
12... b5 {[%clk 0:02:19]} 13. O-O {[%clk 0:02:30.6]} 13... Nd7 {[%clk
0:02:13.1]} 14. Bg3 {[%clk 0:02:29.8]} 14... Nb6 {[%clk 0:02:12.8]} 15. a3
{[%clk 0:02:23.2]} 15... a5 {[%clk 0:02:07.7]} 16. f3 {[%clk 0:02:22.4]} 16...
Bg5 {[%clk 0:01:59.7]} 17. e4 {[%clk 0:02:15.5]} 17... Bxd2 {[%clk 0:01:57.5]}
18. Qxd2 {[%clk 0:02:13]} 18... dxe4 {[%clk 0:01:58]} 19. fxe4 {[%clk 0:02:13]}
19... Bxe4 {[%clk 0:01:58.1]} 20. Rae1 {[%clk 0:02:07.5]} 20... Qc6 {[%clk
0:01:53.9]} 21. Bd1 {[%clk 0:01:59.4]} 21... Rad8 {[%clk 0:01:46.4]} 22. Rf4
{[%clk 0:01:56.3]} 22... f5 {[%clk 0:01:41.1]} 23. Rf2 {[%clk 0:01:44.5]} 23...
Nd7 {[%clk 0:01:39.4]} 24. Qf4 {[%clk 0:01:33.9]} 24... e5 {[%clk 0:01:07.5]}
25. dxe5 {[%clk 0:01:32.8]} 25... Nc5 {[%clk 0:01:07.8]} 26. Be2 {[%clk
0:01:24.7]} 26... Ne6 {[%clk 0:00:55.4]} 27. Qe3 {[%clk 0:01:23.9]} 27... g5
{[%clk 0:00:47.3]} 28. Bf1 {[%clk 0:01:10.6]} 28... Bd3 {[%clk 0:00:20.9]} 29.
Qa7 {[%clk 0:00:55.1]} 29... f4 {[%clk 0:00:18]} 30. Bh2 {[%clk 0:00:55]} 30...
Ra8 {[%clk 0:00:07.1]} 31. Qe7 {[%clk 0:00:53.2]} 31... Bxf1 {[%clk 0:00:06.3]}
32. Rexf1 {[%clk 0:00:49]} 32... Rad8 {[%clk 0:00:05.8]} 33. h4 {[%clk
0:00:42.2]} 33... Rd7 {[%clk 0:00:04.1]} 34. Qxf8+ {[%clk 0:00:23.6]} 34... Nxf8
{[%clk 0:00:05]} 35. hxg5 {[%clk 0:00:23.2]} 35... Ne6 {[%clk 0:00:05.4]} 36.
Bxf4 {[%clk 0:00:23.1]} 36... Rf7 {[%clk 0:00:05.8]} 37. Bg3 {[%clk 0:00:22]}
37... Rxf2 {[%clk 0:00:05.7]} 38. Rxf2 {[%clk 0:00:22.9]} 38... Qe4 {[%clk
0:00:05.3]} 39. Rf6 {[%clk 0:00:22.3]} 39... Qe3+ {[%clk 0:00:05.1]} 40. Kh2
{[%clk 0:00:22.3]} 40... Qb6 {[%clk 0:00:02.5]} 41. g6 {[%clk 0:00:20.9]} 41...
hxg6 {[%clk 0:00:03.1]} 42. Rxg6+ {[%clk 0:00:21.6]} 42... Kf7 {[%clk
0:00:03.5]} 43. Rf6+ {[%clk 0:00:22.5]} 43... Ke8 {[%clk 0:00:04.1]} 44. Bh4
{[%clk 0:00:23.2]} 44... Qc6 {[%clk 0:00:04.4]} 45. Rh6 {[%clk 0:00:22.5]} 45...
Qd5 {[%clk 0:00:04.6]} 46. Rh8+ {[%clk 0:00:21.3]} 46... Kd7 {[%clk 0:00:05]}
47. Rh7+ {[%clk 0:00:22]} 47... Kc6 {[%clk 0:00:05.5]} 48. Bf6 {[%clk
0:00:22.2]} 48... Qe4 {[%clk 0:00:05.3]} 49. Rh6 {[%clk 0:00:22.3]} 49... Qf4+
{[%clk 0:00:05.3]} 50. Kg1 {[%clk 0:00:22.3]} 50... Qxh6 {[%clk 0:00:06.2]} 51.
Kf2 {[%clk 0:00:22.8]} 51... Qd2+ {[%clk 0:00:06.3]} 52. Kf3 {[%clk 0:00:23]}
52... Qxb2 {[%clk 0:00:07.2]} 53. Ke4 {[%clk 0:00:23.7]} 53... Qxc3 {[%clk
0:00:07.6]} 54. Kf5 {[%clk 0:00:24.6]} 54... Kd5 {[%clk 0:00:07.7]} 55. g4
{[%clk 0:00:24.5]} 55... Qf3+ {[%clk 0:00:07.9]} 56. Kg6 {[%clk 0:00:24.3]}
56... Qxg4+ {[%clk 0:00:08.3]} 57. Kf7 {[%clk 0:00:25.2]} 57... Qh5+ {[%clk
0:00:08.6]} 58. Ke7 {[%clk 0:00:25.7]} 58... Qh7+ {[%clk 0:00:08.9]} 59. Ke8
{[%clk 0:00:25.2]} 59... Qg8+ {[%clk 0:00:08.9]} 60. Ke7 {[%clk 0:00:25.4]}
60... Qf8+ {[%clk 0:00:09.2]} 61. Kd7 {[%clk 0:00:26.1]} 61... Qf7+ {[%clk
0:00:09.7]} 62. Kc8 {[%clk 0:00:26.2]} 62... Qc7# {[%clk 0:00:09.2]} 0-1

[Event "Early-Titled-Tuesday-Blitz-July-09-2024"]
[Site "Chess.com"]
[Date "2024.07.09"]
[Round "7"]
[White "Shield12"]
[Black "Yaacovn"]
[Result "1/2-1/2"]
[WhiteElo "2973"]
[BlackElo "2796"]
[TimeControl "180+1"]
[EndTime "9:20:33 PDT"]
[Termination "Game drawn by repetition"]

1. e4 {[%clk 0:03:00.9]} 1... c6 {[%clk 0:02:54.6]} 2. d4 {[%clk 0:03:00.8]}
2... d5 {[%clk 0:02:54.2]} 3. e5 {[%clk 0:03:01.6]} 3... Bf5 {[%clk 0:02:54]} 4.
h4 {[%clk 0:03:02]} 4... Qb6 {[%clk 0:02:53.9]} 5. c4 {[%clk 0:02:57.7]} 5...
dxc4 {[%clk 0:02:52.5]} 6. Bxc4 {[%clk 0:02:58.6]} 6... Bxb1 {[%clk 0:02:52.2]}
7. Bxf7+ {[%clk 0:02:36.4]} 7... Kxf7 {[%clk 0:02:49.8]} 8. Rxb1 {[%clk
0:02:37.3]} 8... e6 {[%clk 0:02:34.9]} 9. Nf3 {[%clk 0:02:33.9]} 9... h6 {[%clk
0:02:34.6]} 10. O-O {[%clk 0:02:30.3]} 10... Ne7 {[%clk 0:02:34.9]} 11. Re1
{[%clk 0:02:26.6]} 11... Nd5 {[%clk 0:02:34.8]} 12. Nh2 {[%clk 0:02:22.8]} 12...
Bb4 {[%clk 0:02:30.6]} 13. Re4 {[%clk 0:02:21.1]} 13... Nd7 {[%clk 0:02:25]} 14.
Qh5+ {[%clk 0:02:19.8]} 14... g6 {[%clk 0:02:21.5]} 15. Qf3+ {[%clk 0:02:17.3]}
15... Kg7 {[%clk 0:02:21.2]} 16. Rg4 {[%clk 0:02:15.9]} 16... h5 {[%clk
0:01:57.2]} 17. Re4 {[%clk 0:02:15.7]} 17... Raf8 {[%clk 0:01:54.2]} 18. Qg3
{[%clk 0:02:15.8]} 18... Rf5 {[%clk 0:01:50.8]} 19. Bg5 {[%clk 0:02:03.6]} 19...
Rhf8 {[%clk 0:01:41.9]} 20. Nf3 {[%clk 0:01:59.6]} 20... a5 {[%clk 0:01:38.6]}
21. Rd1 {[%clk 0:01:48.4]} 21... R8f7 {[%clk 0:01:33]} 22. Bc1 {[%clk
0:01:47.1]} 22... Be7 {[%clk 0:01:31.3]} 23. Re2 {[%clk 0:01:34.7]} 23... a4
{[%clk 0:01:28.1]} 24. Bg5 {[%clk 0:01:33.2]} 24... Qb5 {[%clk 0:01:17.6]} 25.
Red2 {[%clk 0:01:32.8]} 25... Bb4 {[%clk 0:01:14.1]} 26. Rc2 {[%clk 0:01:31.8]}
26... a3 {[%clk 0:01:11.2]} 27. bxa3 {[%clk 0:01:28.1]} 27... Qa4 {[%clk
0:00:59.9]} 28. Rdc1 {[%clk 0:01:03.3]} 28... Bxa3 {[%clk 0:00:57.9]} 29. Rc4
{[%clk 0:01:03.2]} 29... Qb5 {[%clk 0:00:43.2]} 30. R1c2 {[%clk 0:01:02.5]}
30... Qb1+ {[%clk 0:00:39.3]} 31. Kh2 {[%clk 0:01:02.1]} 31... N7b6 {[%clk
0:00:35.7]} 32. Nd2 {[%clk 0:01:01.1]} 32... Qd1 {[%clk 0:00:34]} 33. Qxa3
{[%clk 0:00:38.6]} 33... Nxc4 {[%clk 0:00:34.4]} 34. Rxc4 {[%clk 0:00:36.4]}
34... Rxf2 {[%clk 0:00:32.2]} 35. Ne4 {[%clk 0:00:27.2]} 35... Rxg2+ {[%clk
0:00:20]} 36. Kxg2 {[%clk 0:00:26.4]} 36... Qe2+ {[%clk 0:00:11.6]} 37. Kg3
{[%clk 0:00:25.9]} 37... Qxc4 {[%clk 0:00:06.1]} 38. Bf6+ {[%clk 0:00:25.7]}
38... Kg8 {[%clk 0:00:02.4]} 39. Ng5 {[%clk 0:00:19.7]} 39... Rxf6 {[%clk
0:00:02.4]} 40. exf6 {[%clk 0:00:19.5]} 40... Qc3+ {[%clk 0:00:02.8]} 41. Qxc3
{[%clk 0:00:18]} 41... Nxc3 {[%clk 0:00:03.7]} 42. Kf4 {[%clk 0:00:17.9]} 42...
Nxa2 {[%clk 0:00:02.9]} 43. Ke5 {[%clk 0:00:17.3]} 43... Nb4 {[%clk 0:00:03.3]}
44. Kxe6 {[%clk 0:00:15.5]} 44... Nd5 {[%clk 0:00:03.1]} 45. f7+ {[%clk
0:00:05.9]} 45... Kg7 {[%clk 0:00:03.5]} 46. Nh7 {[%clk 0:00:03.5]} 46... Nc7+
{[%clk 0:00:04]} 47. Ke7 {[%clk 0:00:03.3]} 47... Nd5+ {[%clk 0:00:04.6]} 48.
Ke8 {[%clk 0:00:03.7]} 48... Nc7+ {[%clk 0:00:05]} 49. Ke7 {[%clk 0:00:03.6]}
49... Nd5+ {[%clk 0:00:05.5]} 50. Ke6 {[%clk 0:00:04.2]} 50... Nc7+ {[%clk
0:00:05.9]} 51. Ke7 {[%clk 0:00:02.6]} 1/2-1/2